bitfinex-derivatives/quotes_BTCF0:USTF0_20250827
["timestamp","ask_amount","ask_price","bid_price","bid_amount"]
[1756337085256,0.56140131,111280.0,111270.0,1.25661051]
[1756337086861,0.16162713,111280.0,111270.0,1.25661051]
[1756337087550,0.18980713,111280.0,111270.0,1.25661051]
[1756337088062,0.16162713,111280.0,111270.0,1.25661051]
[1756337088561,0.18980713,111280.0,111270.0,1.25661051]
[1756337088763,0.18980713,111280.0,111270.0,1.25761051]
[1756337088959,0.001,111280.0,111270.0,1.91093962]
[1756337089156,0.0908505,111280.0,111270.0,1.59746911]
[1756337090760,0.0908505,111280.0,111270.0,1.59646911]
[1756337091363,0.1182277,111290.0,111270.0,1.59646911]
[1756337091559,0.1631977,111290.0,111280.0,0.40218051]
[1756337091764,0.1630977,111290.0,111280.0,0.40218051]
[1756337091959,0.1965577,111290.0,111280.0,0.40218051]
[1756337092362,0.0898477,111290.0,111280.0,0.80550152]
[1756337092768,0.0898477,111290.0,111280.0,0.49203101]
[1756337093068,0.0908477,111290.0,111280.0,0.49203101]
[1756337093469,0.1190277,111290.0,111280.0,0.49203101]
[1756337094074,0.1417977,111290.0,111280.0,0.49203101]
[1756337095170,0.1417977,111290.0,111280.0,0.49303101]
[1756337095560,0.1407977,111290.0,111280.0,0.49403101]
[1756337097364,0.1405208,111300.0,111290.0,0.0898427]
[1756337097565,0.1630908,111300.0,111290.0,1.34346321]
[1756337098662,0.1640908,111300.0,111290.0,1.34346321]
[1756337098864,0.2505908,111300.0,111290.0,0.1785527]
[1756337099072,0.2505908,111300.0,111290.0,0.08871]
[1756337099373,0.2505908,111300.0,111290.0,1.25362051]
[1756337099671,0.2495908,111300.0,111290.0,1.25362051]
[1756337099871,0.2495908,111300.0,111290.0,1.25462051]
[1756337100067,0.2495908,111300.0,111290.0,0.40318051]
[1756337100273,0.2495908,111300.0,111290.0,0.94011]
[1756337100479,0.2505908,111300.0,111290.0,1.25358051]
[1756337101273,0.2505908,111300.0,111290.0,0.94011]
[1756337101474,0.2505908,111300.0,111290.0,1.25358051]
[1756337102371,0.2505908,111300.0,111290.0,0.94011]
[1756337102674,0.2505908,111300.0,111290.0,1.25358051]
[1756337105072,0.1971908,111300.0,111290.0,1.34342321]
[1756337105274,0.2518308,111300.0,111290.0,0.08871]
[1756337105475,0.2518308,111300.0,111290.0,0.94003]
[1756337105676,0.2518308,111300.0,111290.0,1.25350051]
[1756337112775,0.2518308,111300.0,111290.0,1.34334321]
[1756337115190,0.2518308,111300.0,111290.0,0.40218051]
[1756337115491,0.2518308,111300.0,111290.0,1.25342051]
[1756337116590,0.2518308,111300.0,111290.0,0.40218051]
[1756337116795,0.2518308,111300.0,111290.0,1.25338051]
[1756337119497,0.2518308,111300.0,111290.0,1.25330051]
[1756337122896,0.0908408,111300.0,111290.0,1.25330051]
[1756337123100,0.0908408,111300.0,111290.0,1.34314321]
[1756337124201,0.0908408,111300.0,111290.0,1.34414321]
[1756337124499,0.0898408,111300.0,111290.0,1.34514321]
[1756337128603,0.1951208,111300.0,111290.0,0.49402321]
[1756337128808,0.2485608,111300.0,111290.0,1.34498321]
[1756337129906,0.2485608,111300.0,111290.0,1.34398321]
[1756337130613,0.2495608,111300.0,111290.0,1.34298321]
[1756337133312,0.2495608,111300.0,111290.0,1.26495747]
[1756337134012,0.0908408,111300.0,111290.0,1.50040224]
[1756337135207,0.0898408,111300.0,111290.0,1.50040224]
[1756337135408,0.0898408,111300.0,111290.0,1.50140224]
[1756337135909,0.0898408,111300.0,111290.0,1.50240224]
[1756337137315,0.25759264,111310.0,111300.0,0.1310647]
[1756337137510,0.2160021,111310.0,111300.0,0.64432424]
[1756337137706,0.1625621,111310.0,111300.0,0.64432424]
[1756337137906,0.0898266,111310.0,111300.0,0.64432424]
[1756337138512,0.1187266,111310.0,111300.0,0.64432424]
[1756337138716,0.2487966,111310.0,111300.0,0.9342]
[1756337138910,0.2487966,111310.0,111300.0,1.49492414]
[1756337139715,0.0908266,111310.0,111300.0,1.49492414]
[1756337140415,0.001,111310.0,111300.0,1.98036891]
[1756337141110,0.112194,111320.0,111310.0,0.1310566]
[1756337141418,0.247794,111320.0,111310.0,0.0836]
[1756337141617,0.247794,111320.0,111310.0,1.16956477]
[1756337142220,0.247794,111320.0,111310.0,1.17056477]
[1756337142816,0.247794,111320.0,111310.0,1.16956477]
[1756337143017,0.248794,111320.0,111310.0,0.31904477]
[1756337143318,0.248794,111320.0,111310.0,1.24787553]
[1756337146624,0.248794,111320.0,111310.0,0.93404]
[1756337146921,0.248794,111320.0,111310.0,1.24787553]
[1756337147823,0.248794,111320.0,111310.0,0.39743553]
[1756337148122,0.248794,111320.0,111310.0,1.24771553]
[1756337149325,0.248794,111320.0,111310.0,1.33754213]
[1756337149624,0.248794,111320.0,111310.0,1.0237066]
[1756337149823,0.248794,111320.0,111310.0,1.33754213]
[1756337150724,0.248794,111320.0,111310.0,1.24771553]
[1756337150919,0.248794,111320.0,111310.0,0.0836]
[1756337151226,0.248794,111320.0,111310.0,1.19155553]
[1756337152827,0.248794,111320.0,111310.0,0.87772]
[1756337153125,0.248794,111320.0,111310.0,1.19155553]
[1756337158630,0.248794,111320.0,111310.0,0.39743553]
[1756337158831,0.248794,111320.0,111310.0,1.24731553]
[1756337160132,0.248794,111320.0,111310.0,0.93348]
[1756337160334,0.248794,111320.0,111310.0,1.24731553]
[1756337161935,0.140894,111320.0,111310.0,1.24731553]
[1756337162131,0.140894,111320.0,111310.0,1.58714213]
[1756337162132,0.090824,111320.0,111310.0,1.58714213]
[1756337162327,0.0900162,111330.0,111320.0,0.1301586]
[1756337162536,0.0898162,111330.0,111320.0,0.80939801]
[1756337163030,0.0898162,111330.0,111320.0,0.80028966]
[1756337163535,0.0898162,111330.0,111320.0,0.80128966]
[1756337164831,0.0898162,111330.0,111320.0,1.65088966]
[1756337165035,0.0898162,111330.0,111320.0,1.65188966]
[1756337165338,0.0898162,111330.0,111320.0,1.49476926]
[1756337166134,0.0898162,111330.0,111320.0,1.73004459]
[1756337166529,0.0898162,111330.0,111320.0,1.49476926]
[1756337167132,0.16290032,111340.0,111330.0,0.1717605]
[1756337167437,0.16270032,111340.0,111330.0,0.64231116]
[1756337168233,0.4785888,111350.0,111330.0,0.85018116]
[1756337168435,0.4784888,111350.0,111340.0,1.49178306]
[1756337168733,0.54891275,111350.0,111340.0,1.49178306]
[1756337168929,0.52112275,111350.0,111340.0,1.49178306]
[1756337169332,0.54891275,111350.0,111340.0,1.49178306]
[1756337170734,0.54891275,111350.0,111340.0,1.49278306]
[1756337171333,0.54891275,111350.0,111340.0,1.33484085]
[1756337171939,0.58329275,111350.0,111340.0,1.33584085]
[1756337172134,0.61931275,111350.0,111340.0,1.33584085]
[1756337173243,0.68198275,111350.0,111340.0,1.24571845]
[1756337173632,0.68198275,111350.0,111340.0,1.24671845]
[1756337173840,0.43132395,111350.0,111340.0,1.33652085]
[1756337174442,0.52111825,111350.0,111340.0,1.33552085]
[1756337174747,0.68197825,111350.0,111340.0,1.24467845]
[1756337175341,0.68197825,111350.0,111340.0,1.24567845]
[1756337176030,0.68197825,111350.0,111340.0,1.33548085]
[1756337176235,0.54890825,111350.0,111340.0,1.33648085]
[1756337176437,0.64595825,111350.0,111340.0,1.33640085]
[1756337176631,0.66386825,111350.0,111340.0,1.0217924]
[1756337176834,0.66386825,111350.0,111340.0,1.24551845]
[1756337176835,0.68197825,111350.0,111340.0,1.24551845]
[1756337177940,0.68197825,111350.0,111340.0,1.24651845]
[1756337178340,0.68197825,111350.0,111340.0,1.24551845]
[1756337178641,0.68197825,111350.0,111340.0,1.24651845]
[1756337179750,0.68197825,111350.0,111340.0,1.24551845]
[1756337180151,0.68197825,111350.0,111340.0,1.24451845]
[1756337180847,0.55616395,111350.0,111340.0,1.33432085]
[1756337181048,0.50367395,111350.0,111340.0,1.33432085]
[1756337181558,0.53805395,111350.0,111340.0,1.33432085]
[1756337182054,0.53805395,111350.0,111340.0,1.33532085]
[1756337183257,0.62784835,111350.0,111340.0,1.33532085]
[1756337183451,0.66386835,111350.0,111340.0,1.33632085]
[1756337191756,0.58351835,111350.0,111340.0,1.33632085]
[1756337191964,0.61641835,111350.0,111340.0,1.33632085]
[1756337193358,0.61641835,111350.0,111340.0,1.49312488]
[1756337196156,0.67982835,111350.0,111340.0,0.64416488]
[1756337196350,0.67982835,111350.0,111340.0,1.49236488]
[1756337197051,0.67982835,111350.0,111340.0,1.0219524]
[1756337197252,0.67982835,111350.0,111340.0,0.55436248]
[1756337197460,0.67982835,111350.0,111340.0,1.40252248]
[1756337197661,0.67982835,111350.0,111340.0,1.49232498]
[1756337198357,0.67982835,111350.0,111340.0,0.64416498]
[1756337198559,0.67982835,111350.0,111340.0,0.55436248]
[1756337198756,0.67982835,111350.0,111340.0,1.40248248]
[1756337198956,0.67982835,111350.0,111340.0,1.40148248]
[1756337199162,0.67982835,111350.0,111340.0,1.40048248]
[1756337199561,0.67982835,111350.0,111340.0,0.55236248]
[1756337199950,0.67982835,111350.0,111340.0,1.37095248]
[1756337199951,0.49459049,111350.0,111340.0,1.37095248]
[1756337200359,0.49459049,111350.0,111340.0,0.52291248]
[1756337200563,0.49459049,111350.0,111340.0,1.37095248]
[1756337204161,0.49459049,111350.0,111340.0,0.52291248]
[1756337204365,0.97979673,111350.0,111340.0,0.84788]
[1756337204566,0.97979673,111350.0,111340.0,1.08308624]
[1756337204964,0.97979673,111350.0,111340.0,1.09485624]
[1756337205162,0.74459049,111350.0,111340.0,1.09485624]
[1756337206061,0.74459049,111350.0,111340.0,1.33006248]
[1756337207967,0.74459049,111350.0,111340.0,1.44755498]
[1756337208168,0.74459049,111350.0,111340.0,1.35775248]
[1756337208674,0.74459049,111350.0,111340.0,0.92551]
[1756337208875,0.74459049,111350.0,111340.0,1.39592248]
[1756337210072,0.49459049,111350.0,111340.0,1.39592248]
[1756337218176,0.49459049,111350.0,111340.0,0.92551]
[1756337218378,0.49459049,111350.0,111340.0,1.39592248]
[1756337220178,0.49459049,111350.0,111340.0,0.92551]
[1756337220379,0.49459049,111350.0,111340.0,1.39592248]
[1756337221276,0.49459049,111350.0,111340.0,0.92551]
[1756337221577,0.49459049,111350.0,111340.0,1.39592248]
[1756337222777,0.72979673,111350.0,111340.0,0.28514624]
[1756337222975,1.32979673,111350.0,111340.0,0.27337624]
[1756337223179,0.2499026,111340.0,111330.0,0.28496624]
[1756337223378,0.48510884,111340.0,111330.0,1.13184624]
[1756337223574,0.2499026,111340.0,111330.0,1.13184624]
[1756337223773,0.5899026,111340.0,111330.0,1.16080624]
[1756337224184,0.2499026,111340.0,111330.0,1.16080624]
[1756337224381,0.2499026,111340.0,111330.0,1.16180624]
[1756337224676,0.5599026,111340.0,111330.0,1.16180624]
[1756337225176,0.5599026,111340.0,111330.0,1.16280624]
[1756337225381,0.2499026,111340.0,111330.0,1.16280624]
[1756337232086,0.2499026,111340.0,111330.0,0.9276]
[1756337232278,0.2499026,111340.0,111330.0,1.16280624]
[1756337233086,0.6199026,111340.0,111330.0,1.16280624]
[1756337233988,0.6199026,111340.0,111330.0,0.31572624]
[1756337234286,0.6199026,111340.0,111330.0,1.16232624]
[1756337235984,0.57128673,111350.0,111330.0,1.16232624]
[1756337235985,0.27491609,111350.0,111330.0,1.73734308]
[1756337236185,0.46305679,111350.0,111340.0,0.54808248]
[1756337236388,0.49598679,111350.0,111340.0,0.54808248]
[1756337238995,0.46129679,111350.0,111340.0,0.63788508]
[1756337239294,0.40893679,111350.0,111340.0,0.63788508]
[1756337239596,0.40893679,111350.0,111340.0,0.54808248]
[1756337239892,0.44362679,111350.0,111340.0,0.54808248]
[1756337240595,0.47665679,111350.0,111340.0,0.54808248]
[1756337241384,0.44362679,111350.0,111340.0,0.54808248]
[1756337242393,0.40893679,111350.0,111340.0,0.54808248]
[1756337242893,0.44362679,111350.0,111340.0,0.54808248]
[1756337243390,0.47665679,111350.0,111340.0,0.54808248]
[1756337243792,0.49598679,111350.0,111340.0,0.54808248]
[1756337245597,0.49598679,111350.0,111340.0,0.07767]
[1756337245887,0.40893679,111350.0,111340.0,0.88788508]
[1756337246282,0.44362679,111350.0,111340.0,0.88788508]
[1756337246484,0.47665679,111350.0,111340.0,1.64404248]
[1756337246992,0.47665679,111350.0,111340.0,1.64504248]
[1756337247693,0.47665679,111350.0,111340.0,1.64404248]
[1756337248093,0.49598679,111350.0,111340.0,0.79808248]
[1756337248296,0.49598679,111350.0,111340.0,1.64404248]
[1756337248495,0.49598679,111350.0,111340.0,1.64504248]
[1756337249392,0.49598679,111350.0,111340.0,1.64404248]
[1756337249593,0.49598679,111350.0,111340.0,1.64396248]
[1756337252196,0.49598679,111350.0,111340.0,0.79808248]
[1756337252399,0.49598679,111350.0,111340.0,1.64376248]
[1756337256695,0.46129679,111350.0,111340.0,1.73356508]
[1756337256898,0.46169679,111350.0,111340.0,1.73356508]
[1756337257098,0.44236679,111350.0,111340.0,1.73356508]
[1756337257297,0.40893679,111350.0,111340.0,1.73356508]
[1756337257893,0.17556214,111350.0,111340.0,1.96877132]
[1756337258299,0.13361214,111350.0,111340.0,1.96877132]
[1756337258500,0.13361214,111350.0,111340.0,1.9778855]
[1756337259100,0.13361214,111350.0,111340.0,1.9798855]
[1756337259802,0.13361214,111350.0,111340.0,1.9818855]
[1756337262198,0.16298214,111350.0,111340.0,1.9818855]
[1756337262401,0.25277664,111350.0,111340.0,1.03728872]
[1756337262599,0.25277664,111350.0,111340.0,1.88236872]
[1756337262805,0.38076664,111350.0,111340.0,1.36816248]
[1756337263803,0.38076664,111350.0,111340.0,1.36516248]
[1756337264707,0.38076664,111350.0,111340.0,1.36416248]
[1756337265409,0.38076664,111350.0,111340.0,1.20738355]
[1756337265701,0.63076664,111350.0,111340.0,0.36234355]
[1756337265906,0.63076664,111350.0,111340.0,1.20726355]
[1756337269911,0.25277664,111350.0,111340.0,1.29678615]
[1756337270310,0.13361214,111350.0,111340.0,1.54678615]
[1756337272613,0.13361214,111350.0,111340.0,1.54878615]
[1756337273113,0.13361214,111350.0,111340.0,1.30078615]
[1756337273517,0.13361214,111350.0,111340.0,1.29778615]
[1756337273815,0.13361214,111350.0,111340.0,1.30078615]
[1756337274814,0.13361214,111350.0,111340.0,1.29878615]
[1756337275016,0.13361214,111350.0,111340.0,1.55178615]
[1756337276210,0.13361214,111350.0,111340.0,1.55278615]
[1756337276911,0.13361214,111350.0,111340.0,1.55178615]
[1756337277114,0.13361214,111350.0,111340.0,1.55078615]
[1756337279613,0.13361214,111350.0,111340.0,1.55178615]
[1756337280311,0.16158214,111350.0,111340.0,0.70714615]
[1756337280506,0.16158214,111350.0,111340.0,0.70414615]
[1756337280711,0.29163214,111350.0,111340.0,1.30010615]
[1756337282419,0.29163214,111350.0,111340.0,1.30110615]
[1756337282919,0.29163214,111350.0,111340.0,1.29810615]
[1756337283316,0.25708214,111350.0,111340.0,0.45514615]
[1756337283621,0.29163214,111350.0,111340.0,1.29898615]
[1756337283914,0.29163214,111350.0,111340.0,1.29798615]
[1756337284119,0.29163214,111350.0,111340.0,1.29998615]
[1756337284321,0.16158214,111350.0,111340.0,1.29998615]
[1756337284516,0.13361214,111350.0,111340.0,1.6136197]
[1756337284714,0.38897,111360.0,111350.0,0.0897945]
[1756337284921,0.38897,111360.0,111350.0,0.7170616]
[1756337284922,0.38877,111360.0,111350.0,0.7170616]
[1756337286423,0.38877,111360.0,111350.0,0.7190616]
[1756337287320,0.38877,111360.0,111350.0,0.7210616]
[1756337289319,0.43117,111360.0,111350.0,0.0937945]
[1756337289519,0.43117,111360.0,111350.0,0.7210616]
[1756337289922,0.51882,111360.0,111350.0,0.7210616]
[1756337291429,0.51882,111360.0,111350.0,1.5645016]
[1756337299142,0.51882,111360.0,111350.0,0.7210616]
[1756337299338,0.51882,111360.0,111350.0,1.5639016]
[1756337299545,0.51882,111360.0,111350.0,1.25026805]
[1756337301444,0.51882,111360.0,111350.0,1.24926805]
[1756337301837,0.51882,111360.0,111350.0,1.24826805]
[1756337302843,0.51882,111360.0,111350.0,1.24814805]
[1756337303246,0.6086064,111360.0,111350.0,1.24914805]
[1756337304246,0.51882,111360.0,111350.0,1.24914805]
[1756337304945,0.51882,111360.0,111350.0,1.24814805]
[1756337306049,0.6086064,111360.0,111350.0,1.24814805]
[1756337306846,0.51882,111360.0,111350.0,1.24814805]
[1756337307449,0.51882,111360.0,111350.0,1.40480218]
[1756337308039,0.32846981,111360.0,111350.0,1.40480218]
[1756337310654,0.41825621,111360.0,111350.0,1.40480218]
[1756337310847,0.41825621,111360.0,111350.0,1.40424218]
[1756337313848,0.41825621,111360.0,111350.0,0.56208218]
[1756337314050,0.41825621,111360.0,111350.0,1.40408218]
[1756337314051,0.32846981,111360.0,111350.0,1.40408218]
[1756337315554,0.41825621,111360.0,111350.0,0.56208218]
[1756337315851,0.41825621,111360.0,111350.0,1.40408218]
[1756337316255,0.21928112,111360.0,111350.0,1.43116218]
[1756337316453,0.21928112,111360.0,111350.0,0.60717218]
[1756337316753,0.21928112,111360.0,111350.0,1.44901218]
[1756337317854,0.21928112,111360.0,111350.0,1.44893218]
[1756337318154,0.24802112,111360.0,111350.0,1.44893218]
[1756337320359,0.24802112,111360.0,111350.0,1.35901768]
[1756337322056,0.24802112,111360.0,111350.0,1.35801768]
[1756337322253,0.24802112,111360.0,111350.0,1.35901768]
[1756337322756,0.24802112,111360.0,111350.0,1.44881218]
[1756337323148,0.24802112,111360.0,111350.0,1.44781218]
[1756337323352,0.24802112,111360.0,111350.0,1.44881218]
[1756337324754,0.15823472,111360.0,111350.0,1.44881218]
[1756337325759,0.24802112,111360.0,111350.0,1.44881218]
[1756337326259,0.24802112,111360.0,111350.0,0.9785245]
[1756337326454,0.24802112,111360.0,111350.0,1.44881218]
[1756337327356,0.1630079,111370.0,111350.0,1.44881218]
[1756337327561,0.3181879,111370.0,111360.0,0.60516408]
[1756337327859,0.3180879,111370.0,111360.0,0.60516408]
[1756337328758,0.3180879,111370.0,111360.0,0.60616408]
[1756337330360,0.5680832,111370.0,111360.0,0.84230792]
[1756337330556,0.4783048,111370.0,111360.0,0.84230792]
[1756337330758,0.2283048,111370.0,111360.0,0.84230792]
[1756337331164,0.3180832,111370.0,111360.0,0.1368764]
[1756337331350,0.3180832,111370.0,111360.0,0.84230792]
[1756337331662,0.2283048,111370.0,111360.0,0.84230792]
[1756337332863,0.3180832,111370.0,111360.0,0.84230792]
[1756337333765,0.1443948,111370.0,111360.0,0.84230792]
[1756337333967,0.2102948,111370.0,111360.0,0.84230792]
[1756337334268,0.2283048,111370.0,111360.0,0.84230792]
[1756337334455,0.2283048,111370.0,111360.0,0.85140409]
[1756337336467,0.3180832,111370.0,111360.0,0.84230792]
[1756337337664,0.1443948,111370.0,111360.0,0.84230792]
[1756337337968,0.2102948,111370.0,111360.0,0.85132722]
[1756337338266,0.184615,111380.0,111360.0,0.85132722]
[1756337338466,0.245155,111380.0,111370.0,1.33788768]
[1756337338665,0.245055,111380.0,111370.0,1.33968768]
[1756337342371,0.245055,111380.0,111370.0,1.42946608]
[1756337343071,0.31562446,111380.0,111370.0,1.42946608]
[1756337347771,0.31562446,111380.0,111370.0,1.43046608]
[1756337347967,0.31562446,111380.0,111370.0,1.43146608]
[1756337348476,0.31562446,111380.0,111370.0,1.43046608]
[1756337349177,0.31562446,111380.0,111370.0,1.42946608]
[1756337356278,0.31562446,111380.0,111370.0,1.45037608]
[1756337356876,0.31562446,111380.0,111370.0,1.45033608]
[1756337357080,0.31562446,111380.0,111370.0,0.61081608]
[1756337357282,0.31562446,111380.0,111370.0,1.36051768]
[1756337358175,0.31562446,111380.0,111370.0,0.52103768]
[1756337358379,0.31562446,111380.0,111370.0,1.36047768]
[1756337358779,0.31562446,111380.0,111370.0,1.45025678]
[1756337359877,0.31562446,111380.0,111370.0,1.36039768]
[1756337360578,0.31562446,111380.0,111370.0,1.45017678]
[1756337365784,0.31562446,111380.0,111370.0,1.44985678]
[1756337366481,0.28222446,111380.0,111370.0,1.44985678]
[1756337366688,0.31702446,111380.0,111370.0,1.44985678]
[1756337370289,0.31702446,111380.0,111370.0,0.61081678]
[1756337370490,0.31702446,111380.0,111370.0,1.12477384]
[1756337373191,0.65702446,111380.0,111370.0,1.12477384]
[1756337373495,0.65702446,111380.0,111370.0,1.35991768]
[1756337375596,0.65702446,111380.0,111370.0,1.12477384]
[1756337375896,0.31702446,111380.0,111370.0,1.12477384]
[1756337377397,0.28452446,111380.0,111370.0,1.21455294]
[1756337377590,0.26485446,111380.0,111370.0,1.44969678]
[1756337377795,0.29778446,111380.0,111370.0,1.44969678]
[1756337378699,0.29778446,111380.0,111370.0,1.35991768]
[1756337379200,0.31680446,111380.0,111370.0,0.52103768]
[1756337379398,0.31680446,111380.0,111370.0,1.35939768]
[1756337380103,0.31680446,111380.0,111370.0,1.44917678]
[1756337384815,0.31680446,111380.0,111370.0,1.35939768]
[1756337386410,0.18908446,111380.0,111370.0,1.44917678]
[1756337386618,0.31934446,111380.0,111370.0,0.9788891]
[1756337386814,0.31934446,111380.0,111370.0,1.35939768]
[1756337387010,0.31934446,111380.0,111370.0,0.86159]
[1756337387215,0.2142491,111370.0,111360.0,0.28316384]
[1756337387415,0.2473891,111370.0,111360.0,1.35602768]
[1756337388015,0.2473891,111370.0,111360.0,1.35598768]
[1756337388716,0.1171291,111370.0,111360.0,1.44577488]
[1756337388916,0.0897791,111370.0,111360.0,1.68091872]
[1756337389310,0.0897791,111370.0,111360.0,1.68191872]
[1756337389511,0.0897791,111370.0,111360.0,1.68291872]
[1756337391016,0.0897791,111370.0,111360.0,1.68191872]
[1756337391215,0.0897791,111370.0,111360.0,1.59213152]
[1756337391811,0.0897791,111370.0,111360.0,1.59313152]
[1756337392011,0.1171291,111370.0,111360.0,1.59313152]
[1756337392519,0.0897791,111370.0,111360.0,1.68291932]
[1756337392820,0.22082806,111380.0,111360.0,1.68291932]
[1756337393020,0.31805806,111380.0,111370.0,0.51810768]
[1756337393221,0.31795806,111380.0,111370.0,0.51810768]
[1756337399528,0.31795806,111380.0,111370.0,1.35578768]
[1756337400225,0.31795806,111380.0,111370.0,0.51810768]
[1756337400432,0.31795806,111380.0,111370.0,1.12064384]
[1756337400924,0.31795806,111380.0,111370.0,1.35578768]
[1756337401324,0.31795806,111380.0,111370.0,1.44556688]
[1756337402931,0.31795806,111380.0,111370.0,0.9752792]
[1756337403133,0.31795806,111380.0,111370.0,1.35578768]
[1756337403830,0.31795806,111380.0,111370.0,1.12060384]
[1756337405132,0.31795806,111380.0,111370.0,1.35574768]
[1756337405330,0.31795806,111380.0,111370.0,1.44552688]
[1756337405536,0.18769806,111380.0,111370.0,1.44552688]
[1756337405925,0.25530806,111380.0,111370.0,1.44552688]
[1756337408035,0.16034806,111380.0,111370.0,1.44552688]
[1756337408429,0.18973806,111380.0,111370.0,1.44552688]
[1756337408928,0.25734806,111380.0,111370.0,1.44552688]
[1756337409733,0.25734806,111380.0,111370.0,1.44652688]
[1756337409931,0.18973806,111380.0,111370.0,1.44652688]
[1756337411735,0.25734806,111380.0,111370.0,1.44652688]
[1756337411936,0.25734806,111380.0,111370.0,1.44752688]
[1756337412138,0.25734806,111380.0,111370.0,1.44652688]
[1756337412436,0.18973806,111380.0,111370.0,1.44652688]
[1756337412637,0.22391806,111380.0,111370.0,1.44652688]
[1756337413138,0.22391806,111380.0,111370.0,1.44552688]
[1756337413737,0.25734806,111380.0,111370.0,1.44552688]
[1756337414339,0.22391806,111380.0,111370.0,1.44552688]
[1756337414739,0.18973806,111380.0,111370.0,1.44552688]
[1756337415640,0.18973806,111380.0,111370.0,1.44652688]
[1756337415839,0.18973806,111380.0,111370.0,1.44752688]
[1756337416044,0.22391806,111380.0,111370.0,1.44752688]
[1756337416442,0.22391806,111380.0,111370.0,1.44652688]
[1756337416643,0.22391806,111380.0,111370.0,1.44552688]
[1756337419445,0.22391806,111380.0,111370.0,1.44652688]
[1756337419645,0.18973806,111380.0,111370.0,1.44752688]
[1756337421641,0.0002,111390.0,111380.0,0.1365711]
[1756337421840,0.12835902,111400.0,111390.0,0.1365631]
[1756337422041,0.1191502,111400.0,111390.0,1.44409078]
[1756337422748,0.2154444,111410.0,111400.0,0.136555]
[1756337423047,0.2494244,111410.0,111400.0,0.60684268]
[1756337423357,0.2152444,111410.0,111400.0,0.60684268]
[1756337423542,0.0897544,111410.0,111400.0,0.60684268]
[1756337423851,0.0897544,111410.0,111400.0,0.84198652]
[1756337424145,0.0897544,111410.0,111400.0,0.136555]
[1756337424345,0.1191444,111410.0,111400.0,0.60684268]
[1756337425042,0.1191444,111410.0,111400.0,1.44396268]
[1756337425242,0.19184145,111410.0,111400.0,1.44396268]
[1756337425442,0.16245145,111410.0,111400.0,1.44396268]
[1756337426150,0.19184145,111410.0,111400.0,1.44396268]
[1756337428042,0.16245145,111410.0,111400.0,1.44396268]
[1756337429047,0.19064145,111410.0,111400.0,1.44396268]
[1756337429750,0.19064145,111410.0,111400.0,1.67910652]
[1756337430350,0.19064145,111410.0,111400.0,1.44396268]
[1756337430550,0.16245145,111410.0,111400.0,1.44396268]
[1756337431653,0.19064145,111410.0,111400.0,1.44396268]
[1756337431843,0.16245145,111410.0,111400.0,1.44396268]
[1756337432657,0.16244405,111410.0,111400.0,1.67910652]
[1756337432947,0.0899389,111420.0,111410.0,0.136887]
[1756337433147,0.0897389,111420.0,111410.0,0.60717468]
[1756337433350,0.1618984,111430.0,111420.0,0.1368789]
[1756337433554,0.1616984,111430.0,111420.0,1.67911042]
[1756337433952,0.1388484,111430.0,111420.0,1.67911042]
[1756337434254,0.1388484,111430.0,111420.0,1.44396658]
[1756337434551,0.209171,111430.0,111420.0,1.44396658]
[1756337435254,0.160061,111430.0,111420.0,1.44396658]
[1756337435455,0.0703226,111430.0,111420.0,1.44396658]
[1756337435747,0.25360305,111440.0,111430.0,0.02749]
[1756337435955,0.25340305,111440.0,111430.0,0.28228384]
[1756337436152,0.25340305,111440.0,111430.0,0.51742768]
[1756337437155,0.2442178,111440.0,111430.0,0.51742768]
[1756337437348,0.1179178,111440.0,111430.0,0.60715858]
[1756337437642,0.1179178,111440.0,111430.0,0.1368709]
[1756337437848,0.1388378,111440.0,111430.0,0.60715858]
[1756337438452,0.0897278,111440.0,111430.0,0.60715858]
[1756337438953,0.1179178,111440.0,111430.0,0.60715858]
[1756337439151,0.02819,111440.0,111430.0,0.60715858]
[1756337439350,0.29485294,111450.0,111440.0,0.04714]
[1756337439654,0.29465294,111450.0,111440.0,1.19676814]
[1756337439848,0.20493314,111450.0,111440.0,1.28649094]
[1756337440345,0.1536428,111460.0,111450.0,0.15837]
[1756337440544,0.1534428,111460.0,111450.0,0.47139814]
[1756337441854,0.1534428,111460.0,111450.0,1.30787814]
[1756337442349,0.2442028,111460.0,111450.0,1.30787814]
[1756337444356,0.5656832,111460.0,111450.0,0.43676814]
[1756337444661,0.5656832,111460.0,111450.0,1.30775814]
[1756337445358,0.5656832,111460.0,111440.0,0.15857]
[1756337445359,0.2442046,111450.0,111440.0,0.15857]
[1756337445566,0.2442046,111450.0,111440.0,0.99469]
[1756337446960,0.2442046,111450.0,111440.0,1.30771814]
[1756337448563,0.2442046,111450.0,111440.0,1.39744114]
[1756337448860,0.1816346,111450.0,111440.0,1.39744114]
[1756337449062,0.1534446,111450.0,111440.0,1.39744114]
[1756337449763,0.1334846,111450.0,111440.0,1.39744114]
[1756337450063,0.1936046,111450.0,111440.0,1.30771814]
[1756337450253,0.2442046,111450.0,111440.0,1.30755814]
[1756337451358,0.2712992,111450.0,111440.0,1.30755814]
[1756337452864,0.2712992,111450.0,111440.0,0.47139814]
[1756337453070,0.2712992,111450.0,111440.0,0.15837]
[1756337453269,0.2712992,111450.0,111440.0,0.77811814]
[1756337453767,0.2712992,111450.0,111440.0,1.30743814]
[1756337454064,1.19432734,111450.0,111440.0,0.06296]
[1756337454270,0.244213,111440.0,111430.0,0.40573]
[1756337454572,0.2713076,111440.0,111430.0,0.71855814]
[1756337455869,0.6213076,111440.0,111430.0,0.47139814]
[1756337456062,0.6213076,111440.0,111430.0,1.14351814]
[1756337457064,0.6013076,111440.0,111430.0,0.83049]
[1756337457967,0.6013076,111440.0,111430.0,1.14351814]
[1756337458170,0.2713076,111440.0,111430.0,1.14351814]
[1756337459456,0.6313076,111440.0,111430.0,1.14351814]
[1756337460166,0.96467129,111440.0,111430.0,0.12374]
[1756337460366,1.21467129,111440.0,111430.0,0.02164]
[1756337460572,0.245651,111430.0,111420.0,0.26866]
[1756337460780,0.245651,111430.0,111420.0,0.3033]
[1756337460781,0.93577374,111430.0,111420.0,0.3033]
[1756337461070,1.18577374,111430.0,111420.0,0.02114]
[1756337461271,0.2456591,111420.0,111410.0,0.83458]
[1756337461473,0.2727537,111420.0,111410.0,0.83438]
[1756337461768,0.2727537,111420.0,111410.0,0.99446]
[1756337462869,0.28167539,111420.0,111410.0,1.30748814]
[1756337463170,0.65167539,111420.0,111410.0,1.30748814]
[1756337464569,0.65167539,111420.0,111410.0,0.99446]
[1756337464762,0.65167539,111420.0,111410.0,1.30748814]
[1756337465365,0.6719333,111420.0,111410.0,0.15862]
[1756337465564,0.6719333,111420.0,111410.0,0.95214]
[1756337465771,0.98496144,111420.0,111410.0,0.95214]
[1756337466070,0.98496144,111420.0,111410.0,0.9173]
[1756337466564,0.98496144,111420.0,111410.0,0.95214]
[1756337466763,0.98496144,111420.0,111410.0,0.04436]
[1756337466764,1.23496144,111420.0,111410.0,0.04436]
[1756337466964,1.23496144,111420.0,111410.0,0.02114]